Cogmind - Beta 17 @@@ ROGUE MODE // 2026.07.14 @ 18:47:47 Player: rz Result: Self-destructed Performance ------------- Evolutions (4) 2000 Regions Visited (6) 1200 Robots Destroyed (64) 320 Value Destroyed (1909) 1909 Prototype IDs (8) 160 Alien Tech Used (0) 0 Bonus (1160) 1160 TOTAL SCORE: 6749 Bonus ------- Follower Combat Kills 360 Registered with UFD 300 Met Optimus in HQ 500 Cogmind --------- Core Integrity 747/850 Matter 298/300 Energy 136/160 System Corruption 10% Temperature Cool (0) Movement Walking (100) Location -6/Factory Parts ------- > --- POWER (2) -------- Light Fission Core > --- PROPULSION (6) --- Overtuned Titanium Leg Overtuned Titanium Leg Overtuned Titanium Leg Overtuned Titanium Leg Overtuned Titanium Leg > --- UTILITY (5) ------ Scrap Suit High-capacity Storage Unit Signal Interpreter Makeshift Light Armor Plating > --- WEAPON (2) ------- Katana > --- INVENTORY (20) --- Improved Medium Treads Overtuned Titanium Leg Overtuned Titanium Leg Overtuned Titanium Leg Overtuned Titanium Leg VSS Leg VSS Leg Scrap Suit Huge Storage Unit Expert System A0-MCA's Component Scanner Ripteeth DRS Beacon (Ready) Peak State ------------ > --- POWER ------------ Reinforced Ion Engine Light Deuterium Engine > --- PROPULSION ------- Overtuned Titanium Leg Overtuned Titanium Leg Overtuned Titanium Leg Overtuned Titanium Leg Overtuned Titanium Leg Overtuned Titanium Leg > --- UTILITY ---------- Scrap Suit High-capacity Storage Unit Signal Interpreter Makeshift Light Armor Plating > --- WEAPON ----------- Voltaic Drivehammer Katana > --- INVENTORY -------- Overtuned Titanium Leg Overtuned Titanium Leg Overtuned Titanium Leg Overtuned Titanium Leg VSS Leg VSS Leg Scrap Suit Expert System A0-MCA's Component Scanner Ripteeth DRS Beacon [Rating: 55] Favorites ----------- Power Reinforced Ion Engine Engine Reinforced Ion Engine Power Core Light Nuclear Core Propulsion Improved Treads Treads Improved Treads Leg Overtuned Titanium Leg Utility High-capacity Storage Unit Device Sensor Array Storage High-capacity Storage Unit Processor Signal Interpreter Protection Light Armor Plating Weapon Assault Rifle Ballistic Gun Assault Rifle Ballistic Cannon Improved Light Cannon Special Weapon Voltaic Drivehammer Impact Weapon Mace Slashing Weapon Katana Build | -11 -10 -9 -9 -9 -9 -6 ------- Run | Yrd Mat Mat Sto Rec Scr Fac Slots Evolved 8 | . . 2 . . . 6 Power 1 | . . . . . . 1 Propulsion 4 | . . 1 . . . 3 Utility 3 | . . 1 . . . 2 Weapon . | . . . . . . . Parts Attached 57 | 6 8 10 14 1 9 9 Power 7 | 1 . 1 3 . . 2 Engine 5 | 1 . . 3 . . 1 Core 2 | . . 1 . . . 1 Reactor . | . . . . . . . Propulsion 23 | 2 3 3 5 . 7 3 Treads 15 | . 3 3 5 . 4 . Leg 8 | 2 . . . . 3 3 Wheel . | . . . . . . . Hover . | . . . . . . . Flight . | . . . . . . . Utility 13 | 1 3 3 2 . 1 3 Device 4 | . . 1 2 . . 1 Storage 4 | 1 1 1 . . . 1 Processor 3 | . 2 1 . . . . Hackware . | . . . . . . . Protection 2 | . . . . . 1 1 Artifact . | . . . . . . . Weapon 14 | 2 2 3 4 1 1 1 Energy Gun . | . . . . . . . Energy Cannon . | . . . . . . . Ballistic Gun 6 | 2 . . 2 1 1 . Ballistic Cannon 4 | . 1 2 1 . . . Launcher . | . . . . . . . Special Weapon 1 | . . . . . . 1 Impact Weapon 1 | . . 1 . . . . Slashing Weapon 2 | . 1 . 1 . . . Piercing Weapon . | . . . . . . . Special Melee Weapon . | . . . . . . . Unidentified Prototypes 2 | . . . 2 . . . Parts Lost 8 | . . 1 1 1 1 4 Power 3 | . . . 1 . . 2 Propulsion 1 | . . . . . . 1 Utility 3 | . . 1 . 1 1 . Weapon 1 | . . . . . . 1 Highest Loss Streak 4 | . . 1 1 1 1 4 To Critical Strikes 1 | . . . . . . 1 Average Backups 17 | 2 13 19 19 19 17 11 Power 1 | . 1 . 1 1 1 . Propulsion 11 | 1 7 8 13 14 14 6 Utility 1 | . . 1 1 1 1 3 Weapon 3 | . 3 9 4 1 1 1 Tool/Special . | . . . . . . . Unused Backups 42 | . 1 5 8 . 17 11 Power 3 | . 1 . 1 . 1 . Propulsion 29 | . . 2 4 . 16 7 Utility 6 | . . 1 2 . . 3 Weapon 4 | . . 2 1 . . 1 Tool/Special . | . . . . . . . Average Slot Usage (%) 94 | . 96 97 99 89 92 90 Engine 10 | . 13 8 8 7 11 11 Treads 27 | . 19 32 33 33 32 . Leg 5 | . 8 . . . . 39 Device 1 | . . 1 . 6 . 5 Storage 11 | . 14 11 11 11 11 6 Processor 13 | . 11 18 21 11 11 6 Protection 2 | . . . . . 5 5 Ballistic Gun 12 | . 19 . 5 13 18 . Ballistic Cannon 7 | . 7 21 15 6 . . Slashing Weapon 1 | . . . . . 1 6 Peak Build Rating 55 | 6 9 17 20 20 30 55 Average Rating 18 | 4 7 13 17 17 18 54 On Entrance 13 | . 6 9 17 20 13 29 Avg Prop Armor Cover (%) 3 | . . . . . 7 3 Naked Turns . | . . . . . . . Heaviest Build 78 | 14 54 54 58 56 61 78 Greatest Support 114 | 20 40 63 69 69 69 114 Greatest Overweight (x) 2 | . 2 1 . . 1 . Average Overweight (x) . | . 1 . . . . . Largest Inventory Capacity 25 | 8 20 20 20 20 20 25 Average Capacity 19 | 6 19 20 20 20 20 20 Most Carried 20 | 5 20 20 20 20 20 20 Average Carried 17 | 2 13 19 19 19 18 13 Final Capacity 20 | 8 20 20 20 20 20 20 Final Carried 20 | 4 20 20 20 19 20 14 Scrap Suit Usage (%) 8 | . . . . . . 99 Parts Cannibalized 1 | . . . . . . 1 Class Distribution -------------------- 55% | Mutant 34% | Commander-Mutant 8% | Scavenger-Scrapper Dominant Class ---------------- Mutant | -10/Materials Mutant | -9/Materials Mutant | -9/Storage Mutant | -9/Recycling Commander-Mutant | -9/Scraptown Scavenger-Scrapper | -6/Factory Resources | -11 -10 -9 -9 -9 -9 -6 ----------- Run | Yrd Mat Mat Sto Rec Scr Fac Matter Collected 2137 | 51 527 517 500 211 203 128 Remotely . | . . . . . . . Salvage Created 2394 | . 475 356 858 184 192 329 Parts 133 | . 36 25 48 7 12 5 Haulers Intercepted 6 | . . . 6 . . . Recyclers Shooed 3 | . 2 . 1 . . . Parts Field Recycled . | . . . . . . . Retrieved Matter . | . . . . . . . Parts Self-Destructed . | . . . . . . . Prevented . | . . . . . . . Parts Restored . | . . . . . . . Kills | -11 -10 -9 -9 -9 -9 -6 ------- Run | Yrd Mat Mat Sto Rec Scr Fac Combat Hostiles Destroyed 50 | . 13 11 14 4 3 5 Melee 1 | . . . . . . 1 Guns 15 | . 9 . . 3 3 . Cannons 30 | . 4 11 14 1 . . AOE 4 | . . . . . . 4 Classes Destroyed 12 | . 4 3 2 1 2 . Worker 2 | . 1 . 1 . . . Builder 1 | . . . 1 . . . Hauler 6 | . . . 6 . . . Recycler 4 | . . 1 3 . . . Watcher 1 | . 1 . . . . . Swarmer 9 | . 3 3 3 . . . Grunt 23 | . 10 3 6 . . 4 Brawler 2 | . . . . 2 . . Duelist 4 | . . 1 1 1 . 1 Sentry 9 | . . 4 4 1 . . Ranger 1 | . . . . . 1 . Scrapper 2 | . . . . . 2 . Best Kill Streak 11 | . 4 3 11 3 2 2 Combat Bots Only 3 | . 3 3 3 3 2 2 Max Kills in Single Turn 2 | . 2 1 2 1 1 2 Gunslinging . | . . . . . . . Exploded 2 | . . . . . . 2 Melee 1 | . . . . . . 1 Uniques/NPCs Destroyed . | . . . . . . . Combat | -11 -10 -9 -9 -9 -9 -6 -------- Run | Yrd Mat Mat Sto Rec Scr Fac Hostile Shots Fired 280 | . 61 38 42 19 51 69 Missed 54 | . 9 9 14 3 11 8 Hits 226 | . 52 29 28 16 40 61 Melee 16 | . . 2 2 12 . . Projectile 210 | . 52 27 26 4 40 61 Critical Strikes 10 | . . 1 . 3 3 3 Damage Taken 3277 | . 528 364 365 429 605 986 Core 400 | . 134 10 26 . 127 103 Absorbed by Shields 202 | . . . . . 146 56 Regen/Repaired (Parts) 10 | . . . . . . 10 Core Remaining (%) 68 | 100 46 . . . 59 . Volleys Fired 143 | . 42 26 48 18 7 2 Largest 2 | . 2 2 2 2 2 1 Hottest 66 | . 50 66 66 56 53 . Shots Fired 278 | . 84 52 94 36 10 2 Gun 109 | . 65 . 12 22 10 . Cannon 167 | . 19 52 82 14 . . Launcher . | . . . . . . . Special 2 | . . . . . . 2 Kinetic 276 | . 84 52 94 36 10 . Thermal . | . . . . . . . Explosive . | . . . . . . . Electromagnetic 2 | . . . . . . 2 Robot Hit Streak 14 | . 8 8 13 14 3 2 Robot Miss Streak 3 | . 2 3 3 2 2 . Penetration Max . | . . . . . . . Secondary Targets 3 | . 1 . . . 2 . Max Gunslinging Chain 1 | . 1 . . . 1 . Shots Hit Robots 209 | . 55 34 67 27 7 19 Core Hits 86 | . 24 14 29 7 5 7 Critical Kills 3 | . 1 . . . 2 . Critical Parts Destroyed 1 | . . . . . 1 . Critical Strikes 13 | . 1 1 4 . 4 3 Destroy 4 | . 1 . . . 3 . Blast 5 | . . 1 4 . . . Sever 4 | . . . . . 1 3 Melee Attacks 30 | . 2 2 1 . 3 22 Impact 2 | . . 2 . . . . Slashing 28 | . 2 . 1 . 3 22 Piercing . | . . . . . . . Sneak Attacks 2 | . 1 . 1 . . . Combat Hostiles . | . . . . . . . Follow-up Attacks . | . . . . . . . Damage Inflicted 4637 | . 816 721 1412 498 105 1085 Guns 981 | . 539 . 99 269 74 . Cannons 2434 | . 229 721 1255 229 . . Explosions 454 | . . . . . . 454 Melee 677 | . 48 . 58 . 31 540 Ramming . | . . . . . . . Kinetic 3415 | . 768 721 1354 498 74 . Thermal . | . . . . . . . Explosive . | . . . . . . . Electromagnetic 454 | . . . . . . 454 Impact 91 | . . . . . . 91 Slashing 677 | . 48 . 58 . 31 540 Piercing . | . . . . . . . Highest Corruption 11 | . . . 6 11 . 10 Average Corruption 6 | . . . 4 8 . 7 Corruption Purged . | . . . . . . . Corruption Blocked . | . . . . . . . Effects 55 | . . . 18 24 . 13 Message Errors 12 | . . . 5 5 . 2 Matter Fused 17 | . . . 6 6 . 5 Heat Flow Errors 7 | . . . . 4 . 3 Energy Discharges 4 | . . . 1 3 . . Data Loss (minor) 7 | . . . 4 2 . 1 Data Loss (major) 2 | . . . . 2 . . Misfires 2 | . . . 2 . . . Alerts 2 | . . . . 1 . 1 Misdirections 2 | . . . . 1 . 1 Overload Shots . | . . . . . . . Overflow Damage 90 | . . 5 32 . . 53 Projectiles 32 | . . 5 4 . . 23 Explosions . | . . . . . . . Melee 58 | . . . 28 . . 30 Knockbacks 27 | . 2 5 13 7 . . Impact . | . . . . . . . Kinetic 26 | . 2 5 13 6 . . Secondary 1 | . . . . 1 . . Self-Inflicted Damage . | . . . . . . . Shots . | . . . . . . . Rammed . | . . . . . . . Targets Rammed . | . . . . . . . Kicked . | . . . . . . . Crushed . | . . . . . . . Highest Temperature 284 | . 2 27 48 274 33 284 Average Temperature 49 | . 2 11 13 115 11 68 Received Heat Transfer 801 | . 195 69 105 18 350 64 Siege Activations . | . . . . . . . Martial Activations . | . . . . . . . Shielding Activations . | . . . . . . . Robots Disrupted . | . . . . . . . Combat Hostiles . | . . . . . . . Robots Corrupted . | . . . . . . . Combat Hostiles . | . . . . . . . Parts Fried 9 | . . . . . . 9 Impact Corruptions 1 | . . . . . . 1 Robots Melted . | . . . . . . . Combat Hostiles . | . . . . . . . Parts Melted 1 | . . . . . 1 . Heat Transferred . | . . . . . . . Parts Sabotaged . | . . . . . . . Parts Stolen . | . . . . . . . Parts Stripped . | . . . . . . . Power Chain Reactions . | . . . . . . . Alert | -11 -10 -9 -9 -9 -9 -6 ------- Run | Yrd Mat Mat Sto Rec Scr Fac Maximum Alert Level . | . . . . . . . Low Security (%) 100 | 100 100 100 100 100 . 100 Level 1 . | . . . . . . . Level 2 . | . . . . . . . Level 3 . | . . . . . . . Level 4 . | . . . . . . . Level 5 . | . . . . . . . High Security . | . . . . . . . Max Security . | . . . . . . . Peak Influence 187 | . 84 83 187 50 . 70 Initial 29 | . . . 29 . . . Average 34 | . 25 30 74 8 . 25 Influence Increases 1497 | . 340 337 497 148 . 175 Destroy 0b10 Robot/C 980 | . 260 220 280 120 . 100 Destroy 0b10 Robot/NC 75 | . 10 5 55 5 . . Destroy Leader 234 | . 52 70 92 . . 20 Allied During Kill 8 | . . . . 8 . . Successful Hack 35 | . . 8 20 7 . . Disable Machine 90 | . 15 15 45 . . 15 Destroy Structure 30 | . 3 4 5 8 . 10 Lose Combat Pursuer 45 | . . 15 . . . 30 Influence Decreases 1497 | . 340 266 568 148 . 175 Entered New Map 42 | . . . 42 . . . Time Decay 1253 | . 340 256 366 138 . 153 Lost Part 52 | . . 10 10 10 . 22 Purge Threat 150 | . . . 150 . . . Squads Dispatched 6 | . 2 2 2 . . . Investigation . | . . . . . . . Extermination . | . . . . . . . Reinforcement 5 | . 2 2 1 . . . Assault . | . . . . . . . Garrison 1 | . . . 1 . . . Intercept . | . . . . . . . Searches Triggered . | . . . . . . . Construction Impeded . | . . . . . . . Haulers Reinforced . | . . . . . . . Active Scanning Responses . | . . . . . . . Cargo Convoy Interrupts . | . . . . . . . Stealth | -11 -10 -9 -9 -9 -9 -6 --------- Run | Yrd Mat Mat Sto Rec Scr Fac Distress Signals 6 | . 1 1 2 1 . 1 Communications Jammed . | . . . . . . . Distress Signals . | . . . . . . . Times Spotted 97 | . 24 17 20 7 21 8 Peak Tracking Total 5 | . 4 4 3 4 5 4 Tactical Retreats 4 | . . 1 . . 1 2 Traps | -11 -10 -9 -9 -9 -9 -6 ------- Run | Yrd Mat Mat Sto Rec Scr Fac Traps Triggered 7 | . 3 . 4 . . . Indirectly . | . . . . . . . Trap Hack Attempts . | . . . . . . . Triggered . | . . . . . . . Disarmed . | . . . . . . . Reprogrammed . | . . . . . . . Reused . | . . . . . . . Traps Extracted . | . . . . . . . Installed . | . . . . . . . Triggered . | . . . . . . . Machines | -11 -10 -9 -9 -9 -9 -6 ---------- Run | Yrd Mat Mat Sto Rec Scr Fac Machines Disabled 9 | . 1 2 3 . 2 1 Max in Single Turn 1 | . 1 1 1 . 1 1 Machines Repaired . | . . . . . . . Machines Dismantled . | . . . . . . . Machines Sabotaged . | . . . . . . . Overloaded Fab Kills . | . . . . . . . Hacking | -11 -10 -9 -9 -9 -9 -6 --------- Run | Yrd Mat Mat Sto Rec Scr Fac Machines Accessed 27 | . 3 2 9 4 9 . Terminals 12 | . 2 1 8 1 . . Fabricators . | . . . . . . . Repair Stations . | . . . . . . . Recycling Units 5 | . 1 . 1 3 . . Scanalyzers 1 | . . 1 . . . . Garrison Access . | . . . . . . . Total Hacks 86 | . 6 5 14 6 55 . Successful 67 | . . 2 8 2 55 . Failed 18 | . 6 2 6 4 . . Catastrophic 4 | . 3 . . 1 . . Database Lockouts 1 | . . 1 . . . . Manual 16 | . 4 3 8 1 . . Terminals 20 | . 4 3 12 1 . . Fabricators . | . . . . . . . Repair Stations . | . . . . . . . Recycling Units 9 | . 2 . 2 5 . . Scanalyzers 2 | . . 2 . . . . Garrison Access . | . . . . . . . Terminal Hacks 64 | . . 1 7 1 55 . Record 47 | . . . . . 47 . Robot Analysis 7 | . . . . . 7 . Open Door 5 | . . . 5 . . . Branch Access Points 2 | . . 1 1 . . . Unreport Threat 2 | . . . 1 1 . . Proto ID Catalog 1 | . . . . . 1 . Fabricator Hacks . | . . . . . . . Repair Station Hacks . | . . . . . . . Recycling Unit Hacks 2 | . . . 1 1 . . Retrieve Components 2 | . . . 1 1 . . Scanalyzer 1 | . . 1 . . . . Retrieve Study 1 | . . 1 . . . . Garrison Access Hacks . | . . . . . . . Unauthorized Hacks . | . . . . . . . Terminals . | . . . . . . . Fabricators . | . . . . . . . Repair Stations . | . . . . . . . Recycling Units . | . . . . . . . Scanalyzers . | . . . . . . . Garrison Access . | . . . . . . . Data Cores Recovered . | . . . . . . . Used . | . . . . . . . Hacking Detections 12 | . 3 2 4 3 . . Full Trace Events . | . . . . . . . Feedback Events . | . . . . . . . Feedback Blocked . | . . . . . . . Robot Schematics Acquired . | . . . . . . . Robots Built . | . . . . . . . Authchips . | . . . . . . . Time . | . . . . . . . Total Robot Build Rating . | . . . . . . . Part Schematics Acquired . | . . . . . . . Parts Built . | . . . . . . . Authchips . | . . . . . . . Time . | . . . . . . . Total Part Build Rating . | . . . . . . . Part Studies Acquired 1 | . . 1 . . . . Parts Repaired . | . . . . . . . Time . | . . . . . . . Parts Recycled . | . . . . . . . Recycled Matter . | . . . . . . . Retrieved Matter . | . . . . . . . Retrieved Components 4 | . . . 1 3 . . Parts Scanalyzed . | . . . . . . . Part Schematics Acquired . | . . . . . . . Parts Damaged . | . . . . . . . Bothacking | -11 -10 -9 -9 -9 -9 -6 ------------ Run | Yrd Mat Mat Sto Rec Scr Fac Used RIF Installer . | . . . . . . . Robots Hacked . | . . . . . . . Non-combat . | . . . . . . . Combat . | . . . . . . . Robot Hacks Applied . | . . . . . . . Relay Couplers Released . | . . . . . . . Fabnet Peak Effective % . | . . . . . . . Robots Rewired 15 | . . . . 15 . . Allies Hacked . | . . . . . . . Hacks Repelled . | . . . . . . . Allies | -11 -10 -9 -9 -9 -9 -6 -------- Run | Yrd Mat Mat Sto Rec Scr Fac Total Allies 15 | . . . . 15 . . Largest Group 15 | . . . . 15 15 2 Highest-Rated Group 223 | . . . . 223 223 29 Highest-Rated Ally 34 | . . . . 34 34 23 Initial UFD Resources 23 | . . . . . . 23 Total Orders . | . . . . . . . Ally Attacks 24 | . . . . 8 16 . Total Damage 1288 | . . . . 165 1123 . Kills 13 | . . . . 3 10 . Allies Corrupted . | . . . . . . . Allies Melted 2 | . . . . . 2 . Intel | -11 -10 -9 -9 -9 -9 -6 ------- Run | Yrd Mat Mat Sto Rec Scr Fac Active Infowar (turns) 662 | . . 149 69 444 . . Sensors 662 | . . 149 69 444 . . Robot Analysis Total 7 | . . . . . 7 . Derelict Logs Recovered . | . . . . . . . Drone Launches . | . . . . . . . Drone Recoveries . | . . . . . . . Exploration | -11 -10 -9 -9 -9 -9 -6 ------------- Run | Yrd Mat Mat Sto Rec Scr Fac Turns Passed 6471 | 60 1243 830 1005 742 2067 524 Spaces Moved 3246 | 42 449 442 469 347 1237 260 Core 5 | 5 . . . . . . Treads 2783 | . 309 442 469 347 1216 . Legs 458 | 37 140 . . . 21 260 Wheels . | . . . . . . . Hover . | . . . . . . . Flight . | . . . . . . . Fastest Speed 50 | 50 120 160 160 160 153 100 Average Speed 164 | 111 228 160 160 160 160 100 Slowest Speed 320 | 120 320 240 160 160 240 100 Overloaded Moves . | . . . . . . . Propulsion Burnouts . | . . . . . . . Robots Hopped . | . . . . . . . Potential Cave-ins . | . . . . . . . Cave-ins Triggered . | . . . . . . . Exploration Rate (%) 52 | 4 82 41 84 67 86 6 Regions Visited 6 Branch Regions 3 Pre-discovered Areas 3 | . . . 1 . 2 . Known Exits Taken 5 | . 1 1 1 1 1 . Unknown Exits Taken 1 | 1 . . . . . . Scrap Searched 6 | . . . . . 6 . Spaces Dug 1 | . . 1 . . . . Terrain Destroyed 11 | . . 2 1 . . 8 Melee 1 | . . 1 . . . . Projectile 2 | . . 1 1 . . . AOE 8 | . . . . . . 8 Terrain Rammed . | . . . . . . . Walls Destroyed . | . . . . . . . Machines Disabled . | . . . . . . . Actions | -11 -10 -9 -9 -9 -9 -6 --------- Run | Yrd Mat Mat Sto Rec Scr Fac Total 4076 | 52 575 510 642 499 1314 484 Wait 325 | . 38 4 77 17 1 188 Move 3240 | 41 448 441 468 346 1236 260 Hop . | . . . . . . . Pick Up 76 | 5 22 11 11 . 26 1 Fast Attach 22 | 5 9 2 5 . . 1 Attach 21 | 1 1 2 1 3 6 7 Detach 3 | . . . 1 2 . . Swap 34 | . 7 9 9 . 7 2 Drop 69 | . 6 13 21 . 28 1 Fire 143 | . 42 26 48 18 7 2 Melee 30 | . 2 2 1 . 3 22 Ram . | . . . . . . . Kick . | . . . . . . . Crush . | . . . . . . . Escape Stasis . | . . . . . . . Rewire 113 | . . . . 113 . . Trap . | . . . . . . . Miscellaneous . | . . . . . . . Route ------- -11/Scrapyard -10/Materials (discovered 3 exits: *Mat x2 / *Min) -9/Materials (discovered 4 exits: *Mat / *Min x2 / *Sto) -9/Storage -9/Recycling (discovered 2 exits: [*Fac] / *Scr) -9/Scraptown (discovered 2 exits: *Fac x2) -6/Factory History --------- Turn | Location | Event 5 | -11/Scrapyard | Discovered new exit (range 15) 61 | -11/Scrapyard | Entered Materials 256 | -10/Materials | Discovered new exit (range 6) 311 | -10/Materials | Build established: Mutant 643 | -10/Materials | Discovered new exit (range 14) 759 | -10/Materials | Core integrity fell below 50% 973 | -10/Materials | Identified exit to Mines 1234 | -10/Materials | Discovered new exit (range 11) 1295 | -10/Materials | Identified exit to Materials 1304 | -10/Materials | Entered another Materials area 1304 | -9/Materials | Evolved 2 slots: Propulsion x1, Utility x1 1800 | -9/Materials | Discovered new exit (range 12) 1824 | -9/Materials | Identified exit to Materials 1849 | -9/Materials | Identified exit to Mines 1849 | -9/Materials | Identified exit to Storage 2015 | -9/Materials | Central database locked down 2134 | -9/Materials | Entered Storage 2522 | -9/Storage | Garrison activated, responded to threat 2786 | -9/Storage | Learned location of Armory (-4) 2819 | -9/Storage | Identified exit to Recycling 3134 | -9/Storage | Used back door to open Recycling access 3139 | -9/Storage | Entered Recycling 3557 | -9/Recycling | Discovered new exit (range 5) 3584 | -9/Recycling | System corruption reached 10% 3816 | -9/Recycling | Scanned before Scraplab entrance 3846 | -9/Recycling | Entered Scraplab 3859 | -9/Recycling | Discovered new exit (range 3) 3861 | -9/Recycling | Identified exit to Scraptown 3881 | -9/Recycling | Entered Scraptown 3881 | -9/Scraptown | Accompanied by 15 allies 3881 | -9/Scraptown | System corruption cleaned by C-Scrubber 3924 | -9/Scraptown | Build established: Commander-Mutant 4122 | -9/Scraptown | Discovered new exit (range 13) 4227 | -9/Scraptown | Visited Cyclists 4291 | -9/Scraptown | Visited Fellowship of the Rings 4544 | -9/Scraptown | Visited CPS Storage 4575 | -9/Scraptown | Visited Awakened 4586 | -9/Scraptown | Visited TADAMA 4626 | -9/Scraptown | Visited UFD Registry 4626 | -9/Scraptown | Registered with UFD as "Powerslasher" 4687 | -9/Scraptown | Entered Cyclist Reading Room 4693 | -9/Scraptown | Learned location of Zion (-7) 4797 | -9/Scraptown | Visited Scrap Suit Storage 4832 | -9/Scraptown | Visited Scrapoid Pod Storage 4855 | -9/Scraptown | Visited Science Guys 4911 | -9/Scraptown | Visited A0-MCA Data Center 4923 | -9/Scraptown | Given an A rating by A0-MCA 4929 | -9/Scraptown | Found A0-MCA's Component Scanner 4961 | -9/Scraptown | Visited Research Penetration Think Tank 5001 | -9/Scraptown | Visited Analyses Database 5037 | -9/Scraptown | Visited Junk Repository 5099 | -9/Scraptown | Visited DA-N13 Charitable Foundation 5115 | -9/Scraptown | Found DCF Scrap (29 items) 5164 | -9/Scraptown | Visited Abandonware Association 5188 | -9/Scraptown | Learned abandonware demo "REVENGE.EXE" 5399 | -9/Scraptown | Met Optimus 5399 | -9/Scraptown | Accepted into 0bPrime 5482 | -9/Scraptown | Visited Derelict Rescue Squad 5492 | -9/Scraptown | Found DRS Beacon 5541 | -9/Scraptown | Civil war broke out across Scraptown 5650 | -9/Scraptown | Found Prototype Processor 5668 | -9/Scraptown | Identified exit to Factory 5693 | -9/Scraptown | Found Voltaic Drivehammer 5722 | -9/Scraptown | Lost 23 allies 5900 | -9/Scraptown | Found Scrap Suit 5903 | -9/Scraptown | Found Scrap Suit 5948 | -9/Scraptown | Entered Factory 5948 | -6/Factory | Accompanied by 2 allies 5948 | -6/Factory | Evolved 6 slots: Power x1, Propulsion x3, Utility x2 6254 | -6/Factory | Build established: Scavenger-Scrapper 6278 | -6/Factory | System corruption reached 10% 6472 | -6/Factory | Self-destructed Last Messages --------------- 06434_ Penetrated by Slug. 06437_ System corrupted: Matter fused (-7). 06437_ Penetrated by Slug. 06439_ H-66 Slayer Flexi-carbon Leg severed. 06439_ Critical hit (Destroy). 06439_ Rnf. Ion Engine destroyed. 06440_ Scrap Suit cannibalized Flexi-carbon Leg to repair Ovr. Titanium Leg. 06441_ Penetrated by Slug. 06447_ Slug penetrates H-66 Slayer. 06447_ H-66 Slayer destroyed. 06450_ Acquired Lgt. Fission Core. 06450_ Penetrated by Slug. 06454_ Destroyed Phase Shifter. 06459_ System corrupted: IFF burst signal emitted. 06460_ Penetrated by Slug. 06463_ Ovr. Titanium Leg destroyed. 06468_ Penetrated by Slug. 06471_ Voltaic Drivehammer destroyed. Map ----- +----------------------------------------------------+ | ????????# # #????#! """" #???? | | ????????# # ###### """" == #???? | | ????????# + + = #???? | | ######### # ###### #???? | | # # #????# #???? | | # # #????# = #???? | | =##+#######+### ############+########## | | ## #??# | | [ ## #??# | | ## #??# | | ## #??# | | ## #??# % | | ?? ??# #??# #### ##############+### | | ####+##### #### ####+#####???# | | [ # #???# ! | | # % """#???# """ """ | | # """#???# """ """ | | # """#???# """ """ | | # #???# | | ####+################# ^^ ^# """#???# | | ??# ??????????????# # """#???# [ | | ??# """ ????????????# # """#???########## | | ??# """ ??????????+ ; #????????????? | | ??# """ #????????# !##########????????????? | | ??# #????????# [#?????????????????????? | | ??# #????????# @%#?????????????????????? | | ??# #????????# h #?????????????????????? | | ??# ? #????????# #?????????????????????? | | ??####??????#????????# #?????????????????????? | | ?????????????????????# #?????????????????????? | | ?????????????????????# +?????????????????????? | | ?????????????????????# #?????????????????????? | | ?????????????????????# #?????????????????????? | | ?????????????????????# #?????????????????????? | | ?????????????????????# #?????????????????????? | | ?????????????????????+ #?????????????????????? | | ?????????????????????##### #?????????????????????? | | ?????????????????????????? #?????????????????????? | | ?????????????????????????? ??????????????????????? | | ?????????????????????????? ??????????????????????? | | ?????????????????????????? ??????????????????????? | | ?????????????????????????????????????????????????? | | ?????????????????????????????????????????????????? | | ?????????????????????????????????????????????????? | | ?????????????????????????????????????????????????? | | ?????????????????????????????????????????????????? | | ?????????????????????????????????????????????????? | | ?????????????????????????????????????????????????? | | ?????????????????????????????????????????????????? | | ?????????????????????????????????????????????????? | +----------------------------------------------------+ Best States ------------- Heat Dissipation 37 Energy Generation 21 Energy Capacity 305 Matter Stores 300 Matter Capacity 300 Sight Range 16 Robot Scan Range 14 Terrain Scan Density 10 Armor Coverage 150 Evasion (%) 55 Targeting Accuracy 6 Recoil Reduction 3 Item Schematics ----------------- None Robot Schematics ------------------ None Fabricated ------------ Nothing Repaired ---------- Nothing Studied --------- Imp. Light Cannon | -9/Materials | Hacked Alien Tech Used ----------------- None Achievements -------------- Thor Challenges ------------ None Game ------ Seed PropulsionRapidMount Manual? 0 Play Time 00:55:47 Cumulative 86.8 hours Start 2026.07.14 @ 17:50:38 End 2026.07.14 @ 18:47:47 Sessions 1 Manual Loads 0 Difficulty Rogue Special Mode None Game No. 98 Rogue 44 Adventurer 54 Explorer 0 Win Type - Total 2 Types 2/0/0/0/0/0/0/0/0/0 Lore% 40 Gallery% 45 Achievement% 42 Wizard Run 0 Options --------- Layout 1 ASCII 0 Keyboard 0 Movement Mouse Keybinds 1 Fullscreen 1 Font 32/Tamsyn Map View 50x35 Zoom Use 0% Tactical HUD 1 Map Filters NONE Filters NONE Steam 1 RUN: 758e48ec-c50b-4f1b-855a-0fe9c933b7e3